[Event "Late-Titled-Tuesday-Blitz-September-12-2023"]
[Site "Chess.com"]
[Date "2023.09.12"]
[Round "6"]
[White "MightyGMpretender"]
[Black "vi_pranav"]
[Result "0-1"]
[WhiteElo "2731"]
[BlackElo "2991"]
[TimeControl "180+1"]
[EndTime "15:05:02 PDT"]
[Termination "vi_pranav won by resignation"]

1. e4 {[%clk 0:03:00.9]} 1... e5 {[%clk 0:03:00]} 2. Bc4 {[%clk 0:02:58.3]} 2...
Nc6 {[%clk 0:02:57.8]} 3. d3 {[%clk 0:02:58]} 3... Nf6 {[%clk 0:02:56.8]} 4. Nc3
{[%clk 0:02:56.5]} 4... Bc5 {[%clk 0:02:56.8]} 5. Nf3 {[%clk 0:02:54.9]} 5... d6
{[%clk 0:02:56.1]} 6. Na4 {[%clk 0:02:47.9]} 6... Bb6 {[%clk 0:02:55.3]} 7. Nxb6
{[%clk 0:02:44.3]} 7... axb6 {[%clk 0:02:56.2]} 8. c3 {[%clk 0:02:43.2]} 8... h6
{[%clk 0:02:55]} 9. O-O {[%clk 0:02:41.8]} 9... Be6 {[%clk 0:02:54.4]} 10. Bb5
{[%clk 0:02:41.6]} 10... O-O {[%clk 0:02:54]} 11. d4 {[%clk 0:02:37.7]} 11...
exd4 {[%clk 0:02:46.3]} 12. cxd4 {[%clk 0:02:38]} 12... Bg4 {[%clk 0:02:43.4]}
13. Re1 {[%clk 0:02:21.1]} 13... Bxf3 {[%clk 0:01:28.6]} 14. gxf3 {[%clk
0:02:20.3]} 14... Nh5 {[%clk 0:01:29.2]} 15. d5 {[%clk 0:01:56.2]} 15... Na7
{[%clk 0:01:07.7]} 16. Bf1 {[%clk 0:01:26.7]} 16... Qf6 {[%clk 0:01:06.8]} 17.
Qd2 {[%clk 0:00:59.5]} 17... Qxf3 {[%clk 0:00:58]} 18. Be2 {[%clk 0:00:55.7]}
18... Qh3 {[%clk 0:00:56.9]} 19. Qe3 {[%clk 0:00:55.1]} 19... Qh4 {[%clk
0:00:52.8]} 20. Qf3 {[%clk 0:00:46.6]} 20... Nf6 {[%clk 0:00:47.8]} 21. Bd3
{[%clk 0:00:47]} 21... Nd7 {[%clk 0:00:45.8]} 22. Qg3 {[%clk 0:00:43.3]} 22...
Qxg3+ {[%clk 0:00:44.5]} 23. hxg3 {[%clk 0:00:43.3]} 23... Nc5 {[%clk 0:00:43]}
24. Bc2 {[%clk 0:00:41.4]} 24... Rfe8 {[%clk 0:00:39.8]} 25. b4 {[%clk
0:00:39.4]} 25... Na6 {[%clk 0:00:38.3]} 26. Bd2 {[%clk 0:00:38]} 26... Nb5
{[%clk 0:00:36.8]} 27. Kg2 {[%clk 0:00:31.9]} 27... c6 {[%clk 0:00:26.8]} 28.
Bd3 {[%clk 0:00:31.2]} 28... Nac7 {[%clk 0:00:21.8]} 29. a4 {[%clk 0:00:25.8]}
29... Nd4 {[%clk 0:00:21.5]} 30. Be3 {[%clk 0:00:20.6]} 30... c5 {[%clk
0:00:10.9]} 31. Bxd4 {[%clk 0:00:17.1]} 31... cxd4 {[%clk 0:00:11.8]} 32. b5
{[%clk 0:00:11.6]} 32... Rec8 {[%clk 0:00:10.4]} 33. Rec1 {[%clk 0:00:10.3]}
33... Ne8 {[%clk 0:00:10.2]} 34. f4 {[%clk 0:00:10.5]} 34... Nf6 {[%clk
0:00:10]} 35. Kf3 {[%clk 0:00:06]} 35... Nd7 {[%clk 0:00:09.9]} 36. Bf1 {[%clk
0:00:06.9]} 36... Nc5 {[%clk 0:00:09.1]} 37. Rc4 {[%clk 0:00:06.6]} 37... Re8
{[%clk 0:00:07.4]} 38. Rxd4 {[%clk 0:00:06.3]} 38... Nb3 {[%clk 0:00:07.8]} 39.
Rad1 {[%clk 0:00:06]} 39... Nxd4+ {[%clk 0:00:08.2]} 40. Rxd4 {[%clk 0:00:06.9]}
40... Rac8 {[%clk 0:00:09]} 41. Bd3 {[%clk 0:00:06.4]} 41... Rc3 {[%clk
0:00:08.7]} 42. Ke3 {[%clk 0:00:06.7]} 42... Kf8 {[%clk 0:00:08.7]} 43. g4
{[%clk 0:00:06.8]} 43... f6 {[%clk 0:00:07.9]} 44. Rb4 {[%clk 0:00:06.7]} 44...
Rec8 {[%clk 0:00:07.2]} 45. Kd4 {[%clk 0:00:07.3]} 45... Rc1 {[%clk 0:00:07.2]}
46. Be2 {[%clk 0:00:07.6]} 46... R1c2 {[%clk 0:00:05.8]} 47. Bd3 {[%clk
0:00:07.7]} 47... Rc1 {[%clk 0:00:06.1]} 48. Rb2 {[%clk 0:00:06.4]} 48... Ke7
{[%clk 0:00:06]} 49. Rg2 {[%clk 0:00:06.6]} 49... Ra1 {[%clk 0:00:06.2]} 50. Bc2
{[%clk 0:00:05.5]} 50... Ra2 {[%clk 0:00:05.7]} 51. Kd3 {[%clk 0:00:04.4]} 51...
g6 {[%clk 0:00:03.9]} 52. Rh2 {[%clk 0:00:04.5]} 52... h5 {[%clk 0:00:03.7]} 53.
gxh5 {[%clk 0:00:04.7]} 53... gxh5 {[%clk 0:00:04.6]} 54. Rg2 {[%clk 0:00:02.4]}
54... h4 {[%clk 0:00:04.7]} 55. Rh2 {[%clk 0:00:02.9]} 55... Raxc2 {[%clk
0:00:03.6]} 0-1

[Event "Late-Titled-Tuesday-Blitz-September-12-2023"]
[Site "Chess.com"]
[Date "2023.09.12"]
[Round "6"]
[White "BogdanDeac"]
[Black "FairChess_on_YouTube"]
[Result "1-0"]
[WhiteElo "2973"]
[BlackElo "3059"]
[TimeControl "180+1"]
[EndTime "15:05:03 PDT"]
[Termination "BogdanDeac won by checkmate"]

1. d4 {[%clk 0:03:00.9]} 1... Nf6 {[%clk 0:02:59.2]} 2. c4 {[%clk 0:03:01]} 2...
e6 {[%clk 0:02:59.5]} 3. Nf3 {[%clk 0:03:01.3]} 3... b6 {[%clk 0:02:59.4]} 4. g3
{[%clk 0:03:01]} 4... Bb7 {[%clk 0:03:00]} 5. Bg2 {[%clk 0:03:01.4]} 5... Bb4+
{[%clk 0:03:00.6]} 6. Bd2 {[%clk 0:03:01.2]} 6... a5 {[%clk 0:03:00.8]} 7. O-O
{[%clk 0:03:00.8]} 7... O-O {[%clk 0:03:00.8]} 8. Bf4 {[%clk 0:02:56.8]} 8...
Be7 {[%clk 0:03:00.9]} 9. Qc2 {[%clk 0:02:54.2]} 9... Be4 {[%clk 0:03:00.3]} 10.
Qc1 {[%clk 0:02:53.7]} 10... Bb7 {[%clk 0:03:00.3]} 11. Rd1 {[%clk 0:02:54.3]}
11... Qc8 {[%clk 0:02:58.9]} 12. Nc3 {[%clk 0:02:49.9]} 12... Ne4 {[%clk
0:02:59.1]} 13. Nb5 {[%clk 0:02:37.8]} 13... Na6 {[%clk 0:02:57.7]} 14. Qc2
{[%clk 0:02:08.8]} 14... Nf6 {[%clk 0:02:38.7]} 15. a3 {[%clk 0:01:40.2]} 15...
Be4 {[%clk 0:02:35.7]} 16. Qc1 {[%clk 0:01:35.6]} 16... Bb7 {[%clk 0:02:35.5]}
17. Qc2 {[%clk 0:01:29.2]} 17... Be4 {[%clk 0:02:35.5]} 18. Qb3 {[%clk
0:01:29.1]} 18... Qb7 {[%clk 0:02:17.7]} 19. Nc3 {[%clk 0:01:25.3]} 19... Bxf3
{[%clk 0:01:44.3]} 20. Bxf3 {[%clk 0:01:23.2]} 20... c6 {[%clk 0:01:44.9]} 21.
e4 {[%clk 0:01:13.3]} 21... Ne8 {[%clk 0:01:38.4]} 22. e5 {[%clk 0:01:03.3]}
22... Qa7 {[%clk 0:01:35.6]} 23. d5 {[%clk 0:00:53.1]} 23... Rc8 {[%clk
0:01:35.7]} 24. dxc6 {[%clk 0:00:32.2]} 24... dxc6 {[%clk 0:01:36.6]} 25. Qc2
{[%clk 0:00:32.7]} 25... Nc5 {[%clk 0:01:31.4]} 26. b4 {[%clk 0:00:28]} 26...
Na6 {[%clk 0:01:31.7]} 27. Ne4 {[%clk 0:00:18.9]} 27... h6 {[%clk 0:01:23.7]}
28. Qb2 {[%clk 0:00:11.3]} 28... Kh8 {[%clk 0:01:13.8]} 29. h4 {[%clk
0:00:10.4]} 29... Kg8 {[%clk 0:01:12.3]} 30. Qe2 {[%clk 0:00:06.8]} 30... Nb8
{[%clk 0:01:07.9]} 31. Rab1 {[%clk 0:00:04.2]} 31... axb4 {[%clk 0:01:05.9]} 32.
axb4 {[%clk 0:00:05.1]} 32... Nd7 {[%clk 0:01:04.4]} 33. Qe3 {[%clk 0:00:04.9]}
33... Qc7 {[%clk 0:01:04.2]} 34. Nd6 {[%clk 0:00:03.3]} 34... Bxd6 {[%clk
0:01:04.3]} 35. exd6 {[%clk 0:00:03.7]} 35... Qd8 {[%clk 0:01:05]} 36. Qe2
{[%clk 0:00:03.9]} 36... Nef6 {[%clk 0:01:03.9]} 37. Be3 {[%clk 0:00:03.6]}
37... e5 {[%clk 0:01:03.4]} 38. c5 {[%clk 0:00:03.1]} 38... bxc5 {[%clk
0:01:00.6]} 39. bxc5 {[%clk 0:00:04]} 39... e4 {[%clk 0:01:00.5]} 40. Bg2 {[%clk
0:00:04.4]} 40... Re8 {[%clk 0:00:59.2]} 41. Qc2 {[%clk 0:00:03.9]} 41... Ne5
{[%clk 0:00:57.4]} 42. Rd4 {[%clk 0:00:03.5]} 42... Neg4 {[%clk 0:00:57.1]} 43.
Re1 {[%clk 0:00:02.7]} 43... Ra8 {[%clk 0:00:43.6]} 44. Bxe4 {[%clk 0:00:02.6]}
44... Nxe3 {[%clk 0:00:28.6]} 45. Rxe3 {[%clk 0:00:02.4]} 45... Ra1+ {[%clk
0:00:28.8]} 46. Kg2 {[%clk 0:00:02.6]} 46... Ng4 {[%clk 0:00:24.7]} 47. Bh7+
{[%clk 0:00:02.4]} 47... Kh8 {[%clk 0:00:22.9]} 48. Rxg4 {[%clk 0:00:03]} 48...
Rxe3 {[%clk 0:00:22]} 49. fxe3 {[%clk 0:00:03.9]} 49... Qf6 {[%clk 0:00:22.6]}
50. Rf4 {[%clk 0:00:04.3]} 50... Qe6 {[%clk 0:00:23.2]} 51. Bf5 {[%clk
0:00:03.7]} 51... Qxe3 {[%clk 0:00:20.4]} 52. Qf2 {[%clk 0:00:04.3]} 52... Qc1
{[%clk 0:00:19.7]} 53. Kh3 {[%clk 0:00:03.7]} 53... Qh1+ {[%clk 0:00:18.7]} 54.
Qh2 {[%clk 0:00:04]} 54... Qd5 {[%clk 0:00:17]} 55. d7 {[%clk 0:00:04]} 55... g5
{[%clk 0:00:14.5]} 56. Qb2+ {[%clk 0:00:02.6]} 56... Kg8 {[%clk 0:00:12.1]} 57.
Qxa1 {[%clk 0:00:03.2]} 57... gxf4 {[%clk 0:00:12.5]} 58. Qa8+ {[%clk
0:00:02.4]} 58... Kg7 {[%clk 0:00:12.3]} 59. d8=Q {[%clk 0:00:03.3]} 59... Qh1+
{[%clk 0:00:10.8]} 60. Kg4 {[%clk 0:00:03.6]} 60... h5+ {[%clk 0:00:11.5]} 61.
Kg5 {[%clk 0:00:03.1]} 61... Qa1 {[%clk 0:00:10.8]} 62. Qh8# {[%clk 0:00:02.6]}
1-0

[Event "Late-Titled-Tuesday-Blitz-September-12-2023"]
[Site "Chess.com"]
[Date "2023.09.12"]
[Round "6"]
[White "Ducke13"]
[Black "DefiantChair"]
[Result "0-1"]
[WhiteElo "2506"]
[BlackElo "2674"]
[TimeControl "180+1"]
[EndTime "15:05:03 PDT"]
[Termination "DefiantChair won by checkmate"]

1. d4 {[%clk 0:02:55]} 1... Nf6 {[%clk 0:03:00.3]} 2. g3 {[%clk 0:02:53.9]} 2...
d5 {[%clk 0:02:59.8]} 3. Nf3 {[%clk 0:02:52.8]} 3... e6 {[%clk 0:03:00.7]} 4.
Bg2 {[%clk 0:02:52.5]} 4... b5 {[%clk 0:02:57.5]} 5. a4 {[%clk 0:02:51.1]} 5...
b4 {[%clk 0:02:55.5]} 6. c4 {[%clk 0:02:51.6]} 6... bxc3 {[%clk 0:02:53.8]} 7.
Nxc3 {[%clk 0:02:51.5]} 7... c6 {[%clk 0:02:54.5]} 8. O-O {[%clk 0:02:50.4]}
8... a5 {[%clk 0:02:54.5]} 9. Bf4 {[%clk 0:02:48.1]} 9... Bd6 {[%clk 0:02:49.9]}
10. Bxd6 {[%clk 0:02:46.9]} 10... Qxd6 {[%clk 0:02:50.8]} 11. Ne5 {[%clk
0:02:46.8]} 11... O-O {[%clk 0:02:50.5]} 12. Qc2 {[%clk 0:02:29.5]} 12... Na6
{[%clk 0:02:46.9]} 13. Rfc1 {[%clk 0:02:28.1]} 13... Nb4 {[%clk 0:02:46.9]} 14.
Qd2 {[%clk 0:02:23.2]} 14... Ba6 {[%clk 0:02:43]} 15. Bf3 {[%clk 0:02:17.7]}
15... c5 {[%clk 0:02:38]} 16. Nb5 {[%clk 0:02:04.9]} 16... Bxb5 {[%clk
0:02:36.4]} 17. axb5 {[%clk 0:02:05.8]} 17... c4 {[%clk 0:02:28.6]} 18. h4
{[%clk 0:01:46.9]} 18... h6 {[%clk 0:02:26.5]} 19. g4 {[%clk 0:01:37.2]} 19...
Nd7 {[%clk 0:02:16.6]} 20. Qe3 {[%clk 0:00:52.1]} 20... Nxe5 {[%clk 0:02:09.7]}
21. dxe5 {[%clk 0:00:51.8]} 21... Qd7 {[%clk 0:02:07.2]} 22. g5 {[%clk
0:00:49.1]} 22... hxg5 {[%clk 0:02:06.4]} 23. Qxg5 {[%clk 0:00:45.5]} 23... f6
{[%clk 0:01:43]} 24. exf6 {[%clk 0:00:40.5]} 24... Rxf6 {[%clk 0:01:43.9]} 25.
Kh1 {[%clk 0:00:23.2]} 25... Raf8 {[%clk 0:01:25.9]} 26. Rxa5 {[%clk 0:00:19.2]}
26... Qf7 {[%clk 0:01:05.4]} 27. Rca1 {[%clk 0:00:15.6]} 27... Rxf3 {[%clk
0:00:52.8]} 28. exf3 {[%clk 0:00:15.3]} 28... Qxf3+ {[%clk 0:00:53.7]} 29. Qg2
{[%clk 0:00:15]} 29... Qh5 {[%clk 0:00:20.1]} 30. Ra8 {[%clk 0:00:13.5]} 30...
Qxh4+ {[%clk 0:00:19.8]} 31. Kg1 {[%clk 0:00:13.7]} 31... Qh6 {[%clk 0:00:14.4]}
32. Rxf8+ {[%clk 0:00:13.2]} 32... Kxf8 {[%clk 0:00:15.3]} 33. Ra8+ {[%clk
0:00:11.7]} 33... Ke7 {[%clk 0:00:15.5]} 34. Ra7+ {[%clk 0:00:11.7]} 34... Kd6
{[%clk 0:00:14.8]} 35. Qh2+ {[%clk 0:00:10.5]} 35... Qxh2+ {[%clk 0:00:12.6]}
36. Kxh2 {[%clk 0:00:11.4]} 36... Nd3 {[%clk 0:00:13]} 37. Rxg7 {[%clk
0:00:08.8]} 37... Kc5 {[%clk 0:00:12.5]} 38. Rg6 {[%clk 0:00:05.6]} 38... Kxb5
{[%clk 0:00:10.4]} 39. Rxe6 {[%clk 0:00:05.7]} 39... Nxf2 {[%clk 0:00:10.6]} 40.
Kg2 {[%clk 0:00:03.8]} 40... Nd3 {[%clk 0:00:10.3]} 41. Re2 {[%clk 0:00:03.8]}
41... Nf4+ {[%clk 0:00:10.4]} 42. Kf3 {[%clk 0:00:03.9]} 42... Nxe2 {[%clk
0:00:11.3]} 43. Kxe2 {[%clk 0:00:04.8]} 43... d4 {[%clk 0:00:11.6]} 44. Kd2
{[%clk 0:00:05.1]} 44... Kb4 {[%clk 0:00:12]} 45. Kc2 {[%clk 0:00:05.6]} 45...
d3+ {[%clk 0:00:12.1]} 46. Kc1 {[%clk 0:00:05.1]} 46... Kb3 {[%clk 0:00:12.6]}
47. Kd2 {[%clk 0:00:01.8]} 47... Kxb2 {[%clk 0:00:13.5]} 48. Ke3 {[%clk
0:00:01.9]} 48... c3 {[%clk 0:00:13.7]} 49. Kxd3 {[%clk 0:00:02.4]} 49... c2
{[%clk 0:00:14.6]} 50. Kd4 {[%clk 0:00:02.7]} 50... c1=Q {[%clk 0:00:15.5]} 51.
Kd3 {[%clk 0:00:03.2]} 51... Qc2+ {[%clk 0:00:15.8]} 52. Ke3 {[%clk 0:00:03.5]}
52... Kc3 {[%clk 0:00:16]} 53. Kf4 {[%clk 0:00:03.6]} 53... Qd3 {[%clk
0:00:16.4]} 54. Ke5 {[%clk 0:00:04.5]} 54... Qe3+ {[%clk 0:00:16.1]} 55. Kd5
{[%clk 0:00:04.7]} 55... Qd4+ {[%clk 0:00:16.4]} 56. Ke6 {[%clk 0:00:04.4]}
56... Qc5 {[%clk 0:00:16.7]} 57. Kf6 {[%clk 0:00:04.6]} 57... Qd5 {[%clk
0:00:17.1]} 58. Ke7 {[%clk 0:00:05.1]} 58... Qc6 {[%clk 0:00:17.4]} 59. Kf7
{[%clk 0:00:04.8]} 59... Qd6 {[%clk 0:00:17.8]} 60. Ke8 {[%clk 0:00:05.2]} 60...
Qc7 {[%clk 0:00:18.1]} 61. Kf8 {[%clk 0:00:05.9]} 61... Kd4 {[%clk 0:00:19]} 62.
Kg8 {[%clk 0:00:06.8]} 62... Ke5 {[%clk 0:00:19.9]} 63. Kh8 {[%clk 0:00:07.7]}
63... Kf6 {[%clk 0:00:20.8]} 64. Kg8 {[%clk 0:00:08.6]} 64... Qg7# {[%clk
0:00:21.3]} 0-1

[Event "Late-Titled-Tuesday-Blitz-September-12-2023"]
[Site "Chess.com"]
[Date "2023.09.12"]
[Round "6"]
[White "Zhigalko_Sergei"]
[Black "Vaibhavraut99"]
[Result "1-0"]
[WhiteElo "2876"]
[BlackElo "2576"]
[TimeControl "180+1"]
[EndTime "15:05:04 PDT"]
[Termination "Zhigalko_Sergei won by checkmate"]

1. e4 {[%clk 0:03:00.9]} 1... e5 {[%clk 0:02:58.6]} 2. Nf3 {[%clk 0:03:01.1]}
2... Nc6 {[%clk 0:02:59.1]} 3. Bc4 {[%clk 0:02:57.9]} 3... Bc5 {[%clk
0:02:58.6]} 4. b4 {[%clk 0:02:57.8]} 4... Bxb4 {[%clk 0:02:58.3]} 5. c3 {[%clk
0:02:57.7]} 5... Bd6 {[%clk 0:02:58.8]} 6. d4 {[%clk 0:02:57.7]} 6... Nf6 {[%clk
0:02:59.5]} 7. O-O {[%clk 0:02:57.2]} 7... O-O {[%clk 0:02:59.5]} 8. Re1 {[%clk
0:02:57.4]} 8... h6 {[%clk 0:02:58.9]} 9. Nbd2 {[%clk 0:02:54.1]} 9... a6 {[%clk
0:02:55.8]} 10. a4 {[%clk 0:02:50.5]} 10... Re8 {[%clk 0:02:52.6]} 11. Qb3
{[%clk 0:01:49.8]} 11... Qe7 {[%clk 0:02:51.1]} 12. a5 {[%clk 0:01:47.7]} 12...
Nh5 {[%clk 0:02:12.2]} 13. Bd5 {[%clk 0:01:18.9]} 13... Nf4 {[%clk 0:02:02]} 14.
Nc4 {[%clk 0:01:17]} 14... Nd3 {[%clk 0:01:37.3]} 15. Nxd6 {[%clk 0:01:09.2]}
15... cxd6 {[%clk 0:01:33.3]} 16. Rd1 {[%clk 0:00:53.2]} 16... Nxc1 {[%clk
0:01:30.5]} 17. Rdxc1 {[%clk 0:00:50.7]} 17... Rb8 {[%clk 0:01:26.9]} 18. Qb6
{[%clk 0:00:48.5]} 18... Qf6 {[%clk 0:01:22.9]} 19. h3 {[%clk 0:00:37.3]} 19...
Ne7 {[%clk 0:01:14.3]} 20. Ba2 {[%clk 0:00:22.1]} 20... d5 {[%clk 0:01:08.9]}
21. Qc7 {[%clk 0:00:06.1]} 21... Ra8 {[%clk 0:00:56.4]} 22. dxe5 {[%clk
0:00:06.1]} 22... Qc6 {[%clk 0:00:39.5]} 23. Qd6 {[%clk 0:00:06.4]} 23... dxe4
{[%clk 0:00:20.5]} 24. Nd4 {[%clk 0:00:06.2]} 24... Qxd6 {[%clk 0:00:21.1]} 25.
exd6 {[%clk 0:00:07.1]} 25... Nc6 {[%clk 0:00:22]} 26. Bb3 {[%clk 0:00:02.8]}
26... Rb8 {[%clk 0:00:20.7]} 27. Bd5 {[%clk 0:00:02.5]} 27... Re5 {[%clk
0:00:18.9]} 28. Bxc6 {[%clk 0:00:02.3]} 28... dxc6 {[%clk 0:00:19.8]} 29. Rab1
{[%clk 0:00:02.4]} 29... Bd7 {[%clk 0:00:19.8]} 30. Rd1 {[%clk 0:00:02.4]} 30...
Rxa5 {[%clk 0:00:19.9]} 31. c4 {[%clk 0:00:02.9]} 31... c5 {[%clk 0:00:17.1]}
32. Nb3 {[%clk 0:00:03]} 32... Ra2 {[%clk 0:00:10.2]} 33. Nxc5 {[%clk
0:00:03.5]} 33... Rd8 {[%clk 0:00:07]} 34. Nxb7 {[%clk 0:00:03.4]} 34... Rc8
{[%clk 0:00:06.5]} 35. c5 {[%clk 0:00:04]} 35... e3 {[%clk 0:00:06.7]} 36. fxe3
{[%clk 0:00:04.1]} 36... Bc6 {[%clk 0:00:07.3]} 37. g4 {[%clk 0:00:04.3]} 37...
Rg2+ {[%clk 0:00:07.2]} 38. Kf1 {[%clk 0:00:04.9]} 38... Rh2 {[%clk 0:00:06.4]}
39. Kg1 {[%clk 0:00:05.1]} 39... Rg2+ {[%clk 0:00:06.5]} 40. Kf1 {[%clk
0:00:05.7]} 40... Rh2 {[%clk 0:00:07.2]} 41. e4 {[%clk 0:00:06.2]} 41... Bxe4
{[%clk 0:00:07.1]} 42. d7 {[%clk 0:00:06.5]} 42... Rb8 {[%clk 0:00:06.7]} 43.
d8=Q+ {[%clk 0:00:06.6]} 43... Rxd8 {[%clk 0:00:06.4]} 44. Rxd8+ {[%clk
0:00:07.5]} 44... Kh7 {[%clk 0:00:07.3]} 45. Rbd1 {[%clk 0:00:06.3]} 45... Bxb7
{[%clk 0:00:05.8]} 46. R1d7 {[%clk 0:00:06.6]} 46... Bc6 {[%clk 0:00:03.8]} 47.
Rxf7 {[%clk 0:00:06]} 47... Bb5+ {[%clk 0:00:02.3]} 48. Kg1 {[%clk 0:00:05.5]}
48... Rxh3 {[%clk 0:00:02.4]} 49. Rc8 {[%clk 0:00:05.5]} 49... Rg3+ {[%clk
0:00:02.5]} 50. Kf2 {[%clk 0:00:05.9]} 50... Rxg4 {[%clk 0:00:03.2]} 51. Rcc7
{[%clk 0:00:05.9]} 51... h5 {[%clk 0:00:02.9]} 52. Kf3 {[%clk 0:00:06.3]} 52...
Rg6 {[%clk 0:00:03.2]} 53. Kf4 {[%clk 0:00:06]} 53... h4 {[%clk 0:00:03.6]} 54.
Rce7 {[%clk 0:00:03.7]} 54... h3 {[%clk 0:00:04]} 55. Re3 {[%clk 0:00:03.6]}
55... Rh6 {[%clk 0:00:02.6]} 56. Rg3 {[%clk 0:00:03.8]} 56... h2 {[%clk
0:00:01.7]} 57. Rfxg7+ {[%clk 0:00:03.2]} 57... Kh8 {[%clk 0:00:01.5]} 58. Rg8+
{[%clk 0:00:04.1]} 58... Kh7 {[%clk 0:00:02.2]} 59. R3g7# {[%clk 0:00:04.9]} 1-0

[Event "Late-Titled-Tuesday-Blitz-September-12-2023"]
[Site "Chess.com"]
[Date "2023.09.12"]
[Round "6"]
[White "ChristopherYoo"]
[Black "GothamChess"]
[Result "1-0"]
[WhiteElo "3013"]
[BlackElo "2731"]
[TimeControl "180+1"]
[EndTime "15:05:07 PDT"]
[Termination "ChristopherYoo won on time"]

1. Nf3 {[%clk 0:03:00.9]} 1... g6 {[%clk 0:02:58.9]} 2. h4 {[%clk 0:02:58.2]}
2... Bg7 {[%clk 0:02:56.3]} 3. h5 {[%clk 0:02:58]} 3... e5 {[%clk 0:02:56.7]} 4.
d3 {[%clk 0:02:39.5]} 4... d5 {[%clk 0:02:53.4]} 5. Nc3 {[%clk 0:02:38.8]} 5...
Bg4 {[%clk 0:02:41.2]} 6. h6 {[%clk 0:02:38.1]} 6... Bf6 {[%clk 0:02:40.9]} 7.
e4 {[%clk 0:02:38.1]} 7... c6 {[%clk 0:02:40]} 8. Be2 {[%clk 0:02:31.4]} 8... d4
{[%clk 0:02:35.9]} 9. Nb1 {[%clk 0:02:31.4]} 9... Bc8 {[%clk 0:02:32.8]} 10. c3
{[%clk 0:02:29.6]} 10... c5 {[%clk 0:02:29.9]} 11. Na3 {[%clk 0:02:29.5]} 11...
Nc6 {[%clk 0:02:27.5]} 12. O-O {[%clk 0:02:24.1]} 12... Nge7 {[%clk 0:02:22.2]}
13. Bd2 {[%clk 0:02:18.7]} 13... O-O {[%clk 0:02:15.9]} 14. cxd4 {[%clk
0:02:17.7]} 14... cxd4 {[%clk 0:02:07.4]} 15. b4 {[%clk 0:02:16.8]} 15... a6
{[%clk 0:02:00.2]} 16. b5 {[%clk 0:01:44.6]} 16... axb5 {[%clk 0:01:56.2]} 17.
Nxb5 {[%clk 0:01:45.5]} 17... Be6 {[%clk 0:01:23.6]} 18. a4 {[%clk 0:01:45.1]}
18... Nc8 {[%clk 0:01:20.4]} 19. Qc2 {[%clk 0:01:35.7]} 19... Qe7 {[%clk
0:01:12]} 20. Rfb1 {[%clk 0:01:30.2]} 20... N8a7 {[%clk 0:01:07.3]} 21. Qb2
{[%clk 0:01:26.3]} 21... Rfc8 {[%clk 0:01:02.5]} 22. a5 {[%clk 0:01:24.7]} 22...
Nxb5 {[%clk 0:00:56]} 23. Qxb5 {[%clk 0:01:25.6]} 23... Ra7 {[%clk 0:00:51.8]}
24. a6 {[%clk 0:01:03.6]} 24... bxa6 {[%clk 0:00:46.8]} 25. Rxa6 {[%clk
0:01:03.2]} 25... Rxa6 {[%clk 0:00:34.9]} 26. Qxa6 {[%clk 0:01:04.1]} 26... g5
{[%clk 0:00:24.7]} 27. Rc1 {[%clk 0:00:39]} 27... Bd7 {[%clk 0:00:18.2]} 28. Nh2
{[%clk 0:00:32.8]} 28... Qd8 {[%clk 0:00:12.5]} 29. Ng4 {[%clk 0:00:27.4]} 29...
Be7 {[%clk 0:00:13.1]} 30. Qa2 {[%clk 0:00:12.3]} 30... Qc7 {[%clk 0:00:09.6]}
31. Bd1 {[%clk 0:00:08.9]} 31... Qd6 {[%clk 0:00:09.1]} 32. Qd5 {[%clk
0:00:05.6]} 32... Qxd5 {[%clk 0:00:04.6]} 33. exd5 {[%clk 0:00:05.5]} 33... Nb4
{[%clk 0:00:05.4]} 34. Rxc8+ {[%clk 0:00:04.1]} 34... Bxc8 {[%clk 0:00:06.3]}
35. Nxe5 {[%clk 0:00:03.5]} 35... Nxd5 {[%clk 0:00:04.5]} 36. Nc6 {[%clk
0:00:03.7]} 36... Bf6 {[%clk 0:00:03.5]} 37. Bb3 {[%clk 0:00:04.2]} 37... Be6
{[%clk 0:00:02.7]} 38. Kf1 {[%clk 0:00:04]} 38... Nc7 {[%clk 0:00:03]} 39. Bxe6
{[%clk 0:00:03.6]} 39... fxe6 {[%clk 0:00:03.6]} 40. Ke2 {[%clk 0:00:02.4]}
40... Kf7 {[%clk 0:00:04.2]} 41. Kf3 {[%clk 0:00:02.7]} 41... Kg6 {[%clk
0:00:04.7]} 42. Ke4 {[%clk 0:00:03.4]} 42... Kxh6 {[%clk 0:00:04.7]} 43. Nxd4
{[%clk 0:00:04.1]} 43... Kg6 {[%clk 0:00:04.1]} 44. Nc6 {[%clk 0:00:03]} 44...
h5 {[%clk 0:00:04.4]} 45. d4 {[%clk 0:00:02.8]} 45... Nd5 {[%clk 0:00:04.2]} 46.
Ne5+ {[%clk 0:00:02.9]} 46... Kg7 {[%clk 0:00:04.6]} 47. Nd7 {[%clk 0:00:02.9]}
47... h4 {[%clk 0:00:02.9]} 48. Nc5 {[%clk 0:00:03]} 48... Kf7 {[%clk
0:00:02.5]} 49. Kf3 {[%clk 0:00:02.8]} 49... Ne7 {[%clk 0:00:01.9]} 50. Ne4
{[%clk 0:00:03]} 50... Nf5 {[%clk 0:00:01.5]} 51. Kg4 {[%clk 0:00:02.8]} 51...
Nxd4 {[%clk 0:00:01.8]} 52. Nxf6 {[%clk 0:00:02.8]} 52... Kxf6 {[%clk
0:00:02.7]} 53. Bxg5+ {[%clk 0:00:02.7]} 53... Kg6 {[%clk 0:00:03.4]} 54. Bxh4
{[%clk 0:00:03.3]} 54... Nf5 {[%clk 0:00:03.6]} 55. Bg3 {[%clk 0:00:03.7]} 55...
Nh6+ {[%clk 0:00:03.9]} 56. Kf4 {[%clk 0:00:03.8]} 56... Nf5 {[%clk 0:00:04.3]}
57. Kg4 {[%clk 0:00:03]} 57... Nh6+ {[%clk 0:00:04.5]} 58. Kf4 {[%clk
0:00:03.8]} 58... Nf5 {[%clk 0:00:04.8]} 59. Bh2 {[%clk 0:00:04.5]} 59... Kf6
{[%clk 0:00:03.9]} 60. g4 {[%clk 0:00:04]} 60... Nd4 {[%clk 0:00:04.2]} 61. Ke4
{[%clk 0:00:03.4]} 61... Nc6 {[%clk 0:00:03.3]} 62. Bg3 {[%clk 0:00:04.1]} 62...
Kg6 {[%clk 0:00:02.2]} 63. Bh4 {[%clk 0:00:04.2]} 63... Nb4 {[%clk 0:00:01.9]}
64. f3 {[%clk 0:00:03.5]} 64... Nd5 {[%clk 0:00:01.4]} 65. Ke5 {[%clk
0:00:03.9]} 1-0